Cogmind - Beta 16 @@@ ROGUE MODE // 2025.11.05 @ 01:01:32 Player: puppuppit Result: Destroyed by YI-UF0 with YI-UF0's Doublenader Performance ------------- Evolutions (0) 0 Regions Visited (2) 400 Robots Destroyed (24) 120 Value Destroyed (413) 413 Prototype IDs (2) 40 Alien Tech Used (0) 0 Bonus (0) 0 TOTAL SCORE: 973 Bonus ------- None Cogmind --------- Core Integrity 0/250 Matter 287/300 Energy 99/100 System Corruption 0% Temperature Cool (0) Movement Core (100) Ox1 Location -10/Mines Parts ------- > --- POWER (1) -------- (None) > --- PROPULSION (2) --- (None) > --- UTILITY (2) ------ Small Storage Unit > --- WEAPON (2) ------- Light Assault Rifle > --- INVENTORY (8) ---- Light Treads Light Treads Light Treads Medium Matter Pod (100) Medium Matter Pod (100) Tractor Beam Peak State ------------ > --- POWER ------------ Ion Engine > --- PROPULSION ------- Light Treads Light Treads > --- UTILITY ---------- Small Storage Unit Improved Terrain Scanner > --- WEAPON ----------- Light Assault Rifle Light Assault Rifle > --- INVENTORY -------- Light Nuclear Core Light Treads Medium Matter Pod Medium Matter Pod Targeting Computer Targeting Computer Light Armor Plating Tractor Beam [Rating: 10] Favorites ----------- Power Ion Engine Engine Ion Engine Power Core Light Nuclear Core Propulsion Light Treads Treads Light Treads Leg Aluminum Leg Utility Small Storage Unit Device Improved Terrain Scanner Storage Small Storage Unit Processor Targeting Computer Protection Light Armor Plating Weapon Light Assault Rifle Energy Gun Medium Laser Ballistic Gun Light Assault Rifle Build | -11 -10 -10 ------- Run | Yrd Mat Min Slots Evolved . | . . . Power . | . . . Propulsion . | . . . Utility . | . . . Weapon . | . . . Parts Attached 19 | 8 8 3 Power 3 | 1 1 1 Engine 2 | 1 . 1 Core 1 | . 1 . Reactor . | . . . Propulsion 5 | 3 2 . Treads 4 | 2 2 . Leg 1 | 1 . . Wheel . | . . . Hover . | . . . Flight . | . . . Utility 6 | 2 3 1 Device 2 | 1 1 . Storage 2 | 1 1 . Processor 1 | . 1 . Hackware . | . . . Protection 1 | . . 1 Artifact . | . . . Weapon 5 | 2 2 1 Energy Gun 1 | 1 . . Energy Cannon . | . . . Ballistic Gun 4 | 1 2 1 Ballistic Cannon . | . . . Launcher . | . . . Special Weapon . | . . . Impact Weapon . | . . . Slashing Weapon . | . . . Piercing Weapon . | . . . Special Melee Weapon . | . . . Unidentified Prototypes . | . . . Parts Lost 7 | . . 7 Power 2 | . . 2 Propulsion 2 | . . 2 Utility 1 | . . 1 Weapon 2 | . . 2 Highest Loss Streak 6 | . . 6 To Critical Strikes . | . . . Average Backups 7 | 1 7 7 Power . | . . . Propulsion 1 | . 1 3 Utility 4 | . 5 3 Weapon . | . . . Tool/Special . | . . . Unused Backups 6 | . 3 3 Power . | . . . Propulsion 1 | . . 1 Utility 4 | . 2 2 Weapon 1 | . 1 . Tool/Special . | . . . Average Slot Usage (%) 96 | . 99 85 Engine 7 | . 8 . Core 4 | . 5 1 Treads 27 | . 27 27 Device 6 | . 7 . Storage 14 | . 14 14 Processor 7 | . 5 13 Energy Gun 2 | . 2 . Ballistic Gun 25 | . 25 27 Peak Build Rating 10 | 7 10 9 Average Rating 8 | 5 8 6 On Entrance 5 | . 7 9 Avg Prop Armor Cover (%) . | . . . Naked Turns . | . . . Heaviest Build 14 | 14 14 12 Greatest Support 40 | 40 40 40 Greatest Overweight (x) 1 | 1 . . Average Overweight (x) . | . . . Largest Inventory Capacity 25 | 8 25 8 Average Capacity 7 | 6 8 8 Most Carried 9 | 5 9 8 Average Carried 7 | 1 7 7 Final Capacity 8 | 8 8 8 Final Carried 8 | 5 8 6 Class Distribution -------------------- 100% | Mutant Dominant Class ---------------- Mutant | -10/Materials Mutant | -10/Mines Resources | -11 -10 -10 ----------- Run | Yrd Mat Min Matter Collected 720 | 453 247 20 Remotely 299 | 299 . . Salvage Created 810 | 201 586 23 Parts 53 | 13 39 1 Haulers Intercepted 1 | . 1 . Recyclers Shooed 2 | . 1 1 Parts Field Recycled . | . . . Retrieved Matter . | . . . Parts Self-Destructed . | . . . Prevented . | . . . Parts Restored . | . . . Kills | -11 -10 -10 ------- Run | Yrd Mat Min Combat Hostiles Destroyed 13 | . 11 2 Guns 13 | . 11 2 Classes Destroyed 9 | 3 5 1 Worker 3 | 2 1 . Builder 1 | . 1 . Tunneler 3 | 3 . . Hauler 1 | . 1 . Recycler 2 | 1 1 . Watcher 2 | . 2 . Swarmer 4 | . 3 1 Grunt 8 | . 8 . Assembled 1 | . . 1 Best Kill Streak 4 | 4 4 1 Combat Bots Only 2 | . 2 1 Max Kills in Single Turn 1 | 1 1 1 Gunslinging . | . . . Exploded . | . . . Melee . | . . . Uniques/NPCs Destroyed . | . . . Combat | -11 -10 -10 -------- Run | Yrd Mat Min Hostile Shots Fired 85 | . 46 39 Missed 22 | . 14 8 Hits 63 | . 32 31 Projectile 63 | . 32 31 AOE 20 | . . 20 Damage Taken 1136 | . 379 757 Core 250 | . 70 180 Absorbed by Shields . | . . . Regen/Repaired (Parts) 48 | . 48 . Core Remaining (%) 100 | 100 . . Volleys Fired 104 | 18 66 20 Largest 2 | 2 2 2 Hottest 70 | 70 70 40 Shots Fired 202 | 35 132 35 Gun 202 | 35 132 35 Cannon . | . . . Launcher . | . . . Special . | . . . Kinetic 180 | 18 127 35 Thermal 22 | 17 5 . Explosive . | . . . Electromagnetic . | . . . Robot Hit Streak 9 | 5 9 5 Robot Miss Streak 3 | 2 3 3 Penetration Max . | . . . Secondary Targets 1 | . 1 . Max Gunslinging Chain 1 | . 1 . Shots Hit Robots 128 | 22 85 21 Core Hits 52 | 7 38 7 Critical Kills 1 | . 1 . Critical Parts Destroyed 1 | . 1 . Critical Strikes 5 | 3 2 . Burn 3 | 3 . . Destroy 2 | . 2 . Melee Attacks . | . . . Impact . | . . . Slashing . | . . . Piercing . | . . . Sneak Attacks . | . . . Combat Hostiles . | . . . Follow-up Attacks . | . . . Damage Inflicted 1112 | 233 702 177 Guns 1112 | 233 702 177 Cannons . | . . . Explosions . | . . . Melee . | . . . Ramming . | . . . Kinetic 925 | 84 664 177 Thermal 187 | 149 38 . Explosive . | . . . Electromagnetic . | . . . Impact . | . . . Slashing . | . . . Piercing . | . . . Highest Corruption . | . . . Average Corruption . | . . . Corruption Purged . | . . . Corruption Blocked . | . . . Overload Shots . | . . . Overflow Damage . | . . . Projectiles . | . . . Explosions . | . . . Melee . | . . . Knockbacks . | . . . Impact . | . . . Kinetic . | . . . Secondary . | . . . Self-Inflicted Damage . | . . . Shots . | . . . Rammed . | . . . Targets Rammed . | . . . Kicked . | . . . Crushed . | . . . Highest Temperature 100 | 100 52 40 Average Temperature 20 | 36 10 23 Received Heat Transfer 231 | . 171 60 Siege Activations . | . . . Martial Activations . | . . . Shielding Activations . | . . . Robots Disrupted . | . . . Combat Hostiles . | . . . Robots Corrupted . | . . . Combat Hostiles . | . . . Parts Fried . | . . . Impact Corruptions . | . . . Robots Melted . | . . . Combat Hostiles . | . . . Parts Melted . | . . . Heat Transferred 777 | 666 111 . Parts Sabotaged . | . . . Parts Stolen . | . . . Parts Stripped . | . . . Power Chain Reactions . | . . . Alert | -11 -10 -10 ------- Run | Yrd Mat Min Maximum Alert Level . | . . . Low Security (%) 100 | 100 100 100 Level 1 . | . . . Level 2 . | . . . Level 3 . | . . . Level 4 . | . . . Level 5 . | . . . High Security . | . . . Max Security . | . . . Peak Influence 120 | 10 120 47 Initial 42 | . . 42 Average 21 | 2 25 14 Influence Increases 445 | 30 380 35 Destroy 0b10 Robot/C 240 | . 220 20 Destroy 0b10 Robot/NC 60 | 30 30 . Destroy Leader 56 | . 56 . Successful Hack 44 | . 44 . Select Force Hacks 30 | . 30 . Lose Combat Pursuer 15 | . . 15 Influence Decreases 445 | 30 272 143 Entered New Map 66 | . . 66 Time Decay 369 | 30 272 67 Lost Part 10 | . . 10 Squads Dispatched 3 | . 3 . Investigation 2 | . 2 . Extermination . | . . . Reinforcement 1 | . 1 . Assault . | . . . Garrison . | . . . Intercept . | . . . Searches Triggered . | . . . Construction Impeded . | . . . Haulers Reinforced . | . . . Active Scanning Responses . | . . . Cargo Convoy Interrupts . | . . . Stealth | -11 -10 -10 --------- Run | Yrd Mat Min Distress Signals 2 | . 2 . Communications Jammed . | . . . Distress Signals . | . . . Times Spotted 26 | . 21 5 Peak Tracking Total 4 | . 4 3 Tactical Retreats 1 | . . 1 Traps | -11 -10 -10 ------- Run | Yrd Mat Min Traps Triggered 3 | . 3 . Indirectly . | . . . Trap Hack Attempts . | . . . Triggered . | . . . Disarmed . | . . . Reprogrammed . | . . . Reused . | . . . Traps Extracted . | . . . Installed . | . . . Triggered . | . . . Machines | -11 -10 -10 ---------- Run | Yrd Mat Min Machines Disabled . | . . . Max in Single Turn . | . . . Machines Repaired . | . . . Machines Dismantled . | . . . Machines Sabotaged . | . . . Overloaded Fab Kills . | . . . Hacking | -11 -10 -10 --------- Run | Yrd Mat Min Machines Accessed 8 | . 8 . Terminals 6 | . 6 . Fabricators . | . . . Repair Stations 1 | . 1 . Recycling Units 1 | . 1 . Scanalyzers . | . . . Garrison Access . | . . . Total Hacks 36 | . 36 . Successful 27 | . 27 . Failed 9 | . 9 . Catastrophic . | . . . Database Lockouts . | . . . Manual 26 | . 26 . Terminals 25 | . 25 . Fabricators . | . . . Repair Stations 5 | . 5 . Recycling Units 6 | . 6 . Scanalyzers . | . . . Garrison Access . | . . . Terminal Hacks 9 | . 9 . Robot Schematic 1 | . 1 . Robot Analysis 6 | . 6 . Prototype ID Bank 1 | . 1 . Terminal Index 1 | . 1 . Fabricator Hacks . | . . . Repair Station Hacks 4 | . 4 . Scan Component 2 | . 2 . Repair 2 | . 2 . Recycling Unit Hacks 1 | . 1 . Retrieve Components 1 | . 1 . Scanalyzer . | . . . Garrison Access Hacks . | . . . Unauthorized Hacks 13 | . 13 . Terminals 9 | . 9 . Botnet 5 | . 5 . Operators 1 | . 1 . Skim 3 | . 3 . Fabricators . | . . . Repair Stations . | . . . Recycling Units 4 | . 4 . Reject 1 | . 1 . Recyclers 1 | . 1 . Mask 1 | . 1 . Tunnel 1 | . 1 . Scanalyzers . | . . . Garrison Access . | . . . Data Cores Recovered . | . . . Used . | . . . Hacking Detections 7 | . 7 . Full Trace Events . | . . . Feedback Events . | . . . Feedback Blocked . | . . . Robot Schematics Acquired 1 | . 1 . Robots Built . | . . . Authchips . | . . . Time . | . . . Total Robot Build Rating . | . . . Part Schematics Acquired . | . . . Parts Built . | . . . Authchips . | . . . Time . | . . . Total Part Build Rating . | . . . Part Studies Acquired . | . . . Parts Repaired 2 | . 2 . Time 64 | . 64 . Parts Recycled . | . . . Recycled Matter . | . . . Retrieved Matter . | . . . Retrieved Components 2 | . 2 . Parts Scanalyzed . | . . . Part Schematics Acquired . | . . . Parts Damaged . | . . . Bothacking | -11 -10 -10 ------------ Run | Yrd Mat Min Used RIF Installer . | . . . Robots Hacked . | . . . Non-combat . | . . . Combat . | . . . Robot Hacks Applied . | . . . Relay Couplers Released . | . . . Fabnet Peak Effective % . | . . . Robots Rewired . | . . . Allies Hacked . | . . . Hacks Repelled . | . . . Allies | -11 -10 -10 -------- Run | Yrd Mat Min Total Allies . | . . . Largest Group . | . . . Highest-Rated Group . | . . . Highest-Rated Ally . | . . . Total Orders . | . . . Ally Attacks . | . . . Total Damage . | . . . Kills . | . . . Allies Corrupted . | . . . Allies Melted . | . . . Intel | -11 -10 -10 ------- Run | Yrd Mat Min Active Infowar (turns) 625 | . 625 . Terrain 625 | . 625 . Robot Analysis Total 6 | . 6 . Derelict Logs Recovered . | . . . Drone Launches . | . . . Drone Recoveries . | . . . Exploration | -11 -10 -10 ------------- Run | Yrd Mat Min Turns Passed 1564 | 163 1119 282 Spaces Moved 758 | 64 555 139 Core 6 | 6 . . Treads 752 | 58 555 139 Legs . | . . . Wheels . | . . . Hover . | . . . Flight . | . . . Fastest Speed 50 | 50 160 160 Average Speed 159 | 152 160 160 Slowest Speed 160 | 160 160 160 Overloaded Moves . | . . . Propulsion Burnouts . | . . . Robots Hopped . | . . . Potential Cave-ins . | . . . Cave-ins Triggered . | . . . Exploration Rate (%) 38 | 6 72 37 Regions Visited 2 Branch Regions 1 Pre-discovered Areas 1 | . 1 . Known Exits Taken . | . . . Unknown Exits Taken 2 | 1 1 . Scrap Searched . | . . . Spaces Dug . | . . . Terrain Destroyed . | . . . Melee . | . . . Projectile . | . . . AOE . | . . . Terrain Rammed . | . . . Walls Destroyed . | . . . Machines Disabled . | . . . Actions | -11 -10 -10 --------- Run | Yrd Mat Min Total 949 | 95 683 171 Wait 34 | . 25 9 Move 756 | 63 554 139 Hop . | . . . Pick Up 18 | 5 13 . Fast Attach 13 | 8 4 1 Attach 3 | . 2 1 Detach 1 | . 1 . Swap 7 | . 6 1 Drop 13 | 1 12 . Fire 104 | 18 66 20 Melee . | . . . Ram . | . . . Kick . | . . . Crush . | . . . Escape Stasis . | . . . Rewire . | . . . Trap . | . . . Miscellaneous . | . . . Route ------- -11/Scrapyard -10/Materials (discovered 4 exits: [*Mat x3] / [*Min]) -10/Mines (discovered 2 exits: [*Mat x2]) History --------- Turn | Location | Event 20 | -11/Scrapyard | Discovered new exit (range 15) 164 | -11/Scrapyard | Entered Materials 318 | -10/Materials | Build established: Mutant 626 | -10/Materials | Discovered new exit (range 8) 769 | -10/Materials | Discovered new exit (range 8) 793 | -10/Materials | Repaired Imp. Terrain Scanner 819 | -10/Materials | Repaired Lgt. Treads 986 | -10/Materials | Discovered new exit (range 3) 1046 | -10/Materials | Discovered new exit (range 4) 1283 | -10/Materials | Entered Mines 1284 | -10/Mines | Assembled infested the area 1306 | -10/Mines | Met a Derelict bent on vengeance 1345 | -10/Mines | Discovered new exit (range 13) 1368 | -10/Mines | Discovered new exit (range 11) 1548 | -10/Mines | Core integrity fell below 50% 1564 | -10/Mines | Core integrity fell below 20% 1565 | -10/Mines | Destroyed by YI-UF0 with YI-UF0's Doublenader Last Messages --------------- 01450_ Acquired 4 matter. 01454_ K-01 Serf collects debris. 01461_ U-05 Engineer lays Concrete. 01473_ K-01 Serf collects debris. 01474_ U-05 Engineer lays Concrete. 01476_ The unstable cave ceiling collapses. 01477_ U-05 Engineer lays Concrete. 01527_ Acquired Lgt. Ion Engine. 01528_ Acquired 1 matter. 01529_ U-05 Engineer builds a Wall. 01544_ Discarded Targeting Computer. 01545_ Lgt. Ion Engine destroyed. 01551_ Lgt. Armor Plating destroyed. 01553_ Lgt. Treads destroyed. 01555_ Lgt. Assault Rifle destroyed. 01557_ The unstable cave ceiling collapses. 01557_ Lgt. Treads destroyed. 01559_ The unstable cave ceiling collapses. 01559_ Lgt. Assault Rifle destroyed. 01562_ The unstable cave ceiling collapses. Map ----- +----------------------------------------------------+ | ?????????????????????????????????????????????????? | | ?????????????????????????????????????????????????? | | ?????????????????????????????????????????????????? | | ?????????????????????????????????????????????????? | | ?????????????????????????????????????????????????? | | ?????????????????????????????????????????????????? | | ?????????????????????????????????????????????????? | | ?????????????????????????????????????????????????? | | ???????????????????????????????##????????????????? | | ????? ???????????????????????# #????????????????? | | ???? ???????????????????? # ##???????????????? | | ???? ??????????????????? ^ ????????????????? | | ??? ???????########???? #?????????????????? | | ??? ????????# ##### #?????????????????? | | ?? ?????????#""" ###???????????????? | | ?? ??????????#""" #???????????????? | | ? #???????????#""" ##### #???????????????? | | ? #????????????#""" ##### ????????????????? | | ##???????????# #????????????????? | | ##??????????## # #?????????????????? | | #### #??##### # #?????#???????????? | | #??# # # #### #???????????? | | #### #??????????? | | ###! # """ ?????????????? | | #####?# ## ## % # """ ?????????????? | | ??????# # # ## @ ##??????????????????? | | ??????# # ## # #??????????????????? | | ??????# # # ## g ##??????????????????? | | ????### #### #???????????????????? | | ??### % #??## #??????????????????? | | ??# # [ ##??# ?????????????????? | | ??# #??## ????????????????? | | ?### #???## ### ???????????????? | | ?# %= ##????# ##???#??????????????? | | ?# # ###?????? $ ##???????????????????? | | ?# #????????# #????????????????????? | | ## # # #????????? ????????????????????? | | # # % # # #????????? #????????????????????? | | = % # # ###????????? #????????????????????? | | % !%! #####??????????? #????????????????????? | | ### *# #??????????????? $?????????????????????? | | ?# ### #??????????????????????????????????????? | | ?# ##?###??????????????????????????????????????? | | ?## ##???????????????????????????????????????????? | | ??###????????????????????????????????????????????? | | ?????????????????????????????????????????????????? | | ?????????????????????????????????????????????????? | | ?????????????????????????????????????????????????? | | ?????????????????????????????????????????????????? | | ?????????????????????????????????????????????????? | +----------------------------------------------------+ Best States ------------- Heat Dissipation 25 Energy Generation 14 Energy Capacity 250 Matter Stores 300 Matter Capacity 300 Sight Range 16 Terrain Scan Range 16 Terrain Scan Density 10 Armor Coverage 150 Evasion (%) 40 Targeting Accuracy 5 Recoil Reduction 2 Item Schematics ----------------- None Robot Schematics ------------------ O-16 Technician | -10/Materials | Hacked Fabricated ------------ Nothing Repaired ---------- Lgt. Treads | 65% | -10/Materials Studied --------- None Alien Tech Used ----------------- None Achievements -------------- None Challenges ------------ None Game ------ Seed MultinovaTeslaBox Manual? 0 Play Time 00:13:56 Cumulative 608.4 hours Start 2025.11.04 @ 21:19:13 End 2025.11.05 @ 01:01:32 Sessions 1 Manual Loads 0 Difficulty Rogue Special Mode None Game No. 307 Rogue 307 Adventurer 0 Explorer 0 Win Type - Total 7 Types 3/0/2/1/0/0/0/0/0/1 Lore% 87 Gallery% 78 Achievement% 41 Wizard Run 0 Options --------- Layout 2 ASCII 0 Keyboard 1 Movement Vi Keybinds 0 Fullscreen 2 Font 16/Tamsyn Map View 55x47 Zoom Use 0% Tactical HUD 1 Map Filters NONE Filters NONE Steam 0 RUN: bb483c80-19e3-4ae4-99c3-372f92d3e2b1